bitfinex-derivatives/quotes_BTCF0:USTF0_20241231
["timestamp","ask_amount","ask_price","bid_price","bid_amount"]
[1735682705775,0.053367,93864.0,93863.0,0.3608]
[1735682705982,0.053367,93864.0,93863.0,0.3108]
[1735682706166,0.053367,93864.0,93857.0,0.05337]
[1735682706371,0.05337,93858.0,93857.0,0.05337]
[1735682707378,0.11462002,93867.0,93854.0,0.033]
[1735682707379,0.053372,93855.0,93854.0,0.033]
[1735682709173,0.053372,93855.0,93854.0,0.034]
[1735682709981,0.054372,93855.0,93854.0,0.034]
[1735682711473,0.054372,93855.0,93839.0,0.0317]
[1735682711675,0.05338,93841.0,93840.0,0.0312]
[1735682712985,0.05438,93841.0,93840.0,0.0312]
[1735682713685,0.053381,93839.0,93834.0,0.00104]
[1735682713876,0.414181,93839.0,93827.0,0.399068]
[1735682714077,0.053387,93828.0,93827.0,0.398028]
[1735682714278,0.053387,93828.0,93827.0,0.34464]
[1735682716189,0.053387,93828.0,93827.0,0.34864]
[1735682716384,0.053387,93828.0,93827.0,0.004]
[1735682716579,0.054387,93828.0,93827.0,0.057388]
[1735682717090,0.054387,93828.0,93827.0,0.007388]
[1735682717289,0.054387,93828.0,93826.0,0.0312]
[1735682717483,0.054387,93828.0,93827.0,0.083788]
[1735682719391,0.054387,93828.0,93827.0,0.087788]
[1735682721083,0.053387,93828.0,93827.0,0.087788]
[1735682721284,0.053387,93828.0,93827.0,0.0314]
[1735682721785,0.02002029,93831.0,93826.0,0.0312]
[1735682721987,0.053388,93827.0,93826.0,0.0312]
[1735682723288,0.054388,93827.0,93826.0,0.0312]
[1735682724890,0.053388,93826.0,93825.0,0.053389]
[1735682726500,0.001,93826.0,93817.0,0.0181416]
[1735682726700,0.053393,93820.0,93819.0,0.053392]
[1735682728795,0.053393,93820.0,93819.0,0.054392]
[1735682729599,0.054393,93820.0,93819.0,0.054392]
[1735682730504,0.054393,93820.0,93819.0,0.001]
[1735682731908,0.054393,93820.0,93819.0,0.054392]
[1735682733107,0.054393,93820.0,93819.0,0.001]
[1735682733312,0.053394,93816.0,93815.0,0.0008]
[1735682733513,0.0534,93806.0,93805.0,0.36152]
[1735682733716,0.0534,93806.0,93805.0,0.3608]
[1735682734115,0.053401,93804.0,93803.0,0.053401]
[1735682734712,0.053401,93804.0,93803.0,0.414201]
[1735682736807,0.054401,93804.0,93803.0,0.414201]
[1735682737818,0.054401,93804.0,93803.0,0.400601]
[1735682738819,0.001,93804.0,93803.0,0.400601]
[1735682749124,0.0192922,93804.0,93803.0,0.400601]
[1735682749433,0.001,93804.0,93803.0,0.400601]
[1735682752632,0.054401,93804.0,93803.0,0.400601]
[1735682752835,0.001,93804.0,93803.0,0.400601]
[1735682754522,0.3618,93804.0,93803.0,0.039801]
[1735682754727,0.3618,93804.0,93800.0,0.1]
[1735682755037,0.053402,93801.0,93800.0,0.153403]
[1735682757434,0.054402,93801.0,93800.0,0.153403]
[1735682757826,0.001,93801.0,93800.0,0.153403]
[1735682774650,0.01790466,93801.0,93800.0,0.153403]
[1735682775143,0.001,93801.0,93800.0,0.153403]
[1735682784148,0.001,93801.0,93800.0,0.16865942]
[1735682784540,0.11070201,93820.0,93819.0,0.053392]
[1735682784752,0.053392,93820.0,93819.0,0.053392]
[1735682785047,0.053389,93824.0,93823.0,0.053389]
[1735682785249,0.053389,93824.0,93813.0,0.053395]
[1735682785446,0.05731001,93823.0,93814.0,0.053395]
[1735682785642,0.05731001,93823.0,93813.0,0.053395]
[1735682785946,0.005,93820.0,93819.0,0.053392]
[1735682786540,0.053389,93824.0,93823.0,0.05339]
[1735682787343,0.053394,93816.0,93815.0,0.053393]
[1735682789145,0.057394,93816.0,93815.0,0.053393]
[1735682789540,0.061394,93816.0,93815.0,0.053393]
[1735682790548,0.008,93816.0,93815.0,0.053393]
[1735682801748,0.24158919,93837.0,93836.0,0.053383]
[1735682802051,0.08958152,93837.0,93836.0,0.053383]
[1735682802948,0.09758152,93837.0,93836.0,0.054383]
[1735682803254,0.017,93837.0,93836.0,0.054383]
[1735682804355,0.017,93837.0,93836.0,0.06968642]
[1735682805456,0.01,93837.0,93836.0,0.06868642]
[1735682805754,0.001,93837.0,93836.0,0.07068642]
[1735682812061,0.0317,93849.0,93848.0,0.053376]
[1735682813659,0.0367,93849.0,93848.0,0.053376]
[1735682814259,0.0407,93849.0,93848.0,0.053376]
[1735682819563,0.009,93849.0,93848.0,0.053376]
[1735682838780,0.008,93849.0,93848.0,0.053376]
[1735682839383,0.004,93849.0,93848.0,0.053376]
[1735682839586,0.007,93849.0,93848.0,0.053376]
[1735682840170,0.004,93849.0,93848.0,0.053376]
[1735682840380,0.007,93849.0,93848.0,0.053376]
[1735682843184,0.006,93849.0,93848.0,0.053376]
[1735682843683,0.004,93849.0,93848.0,0.053376]
[1735682843886,0.002,93849.0,93848.0,0.053376]
[1735682844085,0.004,93849.0,93848.0,0.053376]
[1735682846277,0.002,93849.0,93848.0,0.053376]
[1735682846582,0.004,93849.0,93848.0,0.053376]
[1735682853382,0.002,93849.0,93848.0,0.053376]
[1735682853586,0.004,93849.0,93848.0,0.053376]
[1735682859687,0.003,93849.0,93848.0,0.053376]
[1735682860087,0.002,93849.0,93848.0,0.053376]
[1735682860288,0.004,93849.0,93848.0,0.053376]
[1735682860593,0.002,93849.0,93848.0,0.053376]
[1735682860793,0.004,93849.0,93848.0,0.053376]
[1735682861186,0.002,93849.0,93848.0,0.053376]
[1735682861383,0.003,93849.0,93848.0,0.053376]
[1735682862792,0.002,93849.0,93848.0,0.053376]
[1735682862986,0.01447774,93854.0,93853.0,0.053373]
[1735682863294,0.0324,93855.0,93854.0,0.053372]
[1735682863802,0.04602723,93855.0,93854.0,0.053372]
[1735682864598,0.04902723,93855.0,93854.0,0.053372]
[1735682864901,0.05302723,93855.0,93854.0,0.053372]
[1735682867996,0.25945708,93858.0,93853.0,0.053373]
[1735682868204,0.25945708,93858.0,93857.0,0.053371]
[1735682868394,0.25945708,93858.0,93857.0,0.02159008]
[1735682869502,0.053382,93838.0,93837.0,0.053382]
[1735682869702,0.053383,93835.0,93834.0,0.05498047]
[1735682870101,0.053383,93835.0,93834.0,0.01100085]
[1735682870295,0.053383,93835.0,93834.0,0.053382]
[1735682871099,0.053383,93835.0,93834.0,0.054382]
[1735682871295,0.053383,93835.0,93834.0,0.058382]
[1735682873294,0.06717662,93835.0,93834.0,0.058382]
[1735682880112,0.06717662,93835.0,93834.0,0.005]
[1735682883309,0.30496703,93837.0,93834.0,0.005]
[1735682884005,0.053383,93835.0,93834.0,0.005]
[1735682892012,0.414183,93835.0,93834.0,0.005]
[1735682892217,0.07215405,93835.0,93834.0,0.005]
[1735682892410,0.414183,93835.0,93834.0,0.005]
[1735682892608,0.43295405,93835.0,93834.0,0.005]
[1735682895513,0.43295405,93835.0,93817.0,0.0303]
[1735682895514,0.37957105,93835.0,93817.0,0.0303]
[1735682895719,0.053393,93818.0,93817.0,0.0303]
[1735682895916,0.053393,93818.0,93817.0,0.083693]
[1735682896517,0.053393,93818.0,93817.0,0.091693]
[1735682896709,0.053393,93818.0,93817.0,0.094693]
[1735682897117,0.054393,93818.0,93817.0,0.094693]
[1735682898718,0.053393,93818.0,93817.0,0.086693]
[1735682899313,0.07186447,93818.0,93817.0,0.0303]
[1735682914947,0.07186447,93818.0,93817.0,0.01171685]
[1735682918049,0.054393,93818.0,93817.0,0.06510985]
[1735682920042,0.053394,93815.0,93801.0,0.032]
[1735682920246,0.053402,93802.0,93801.0,0.1485]
[1735682921749,0.054402,93802.0,93801.0,0.1515]
[1735682922343,0.053402,93802.0,93801.0,0.1535]
[1735682922749,0.053402,93802.0,93801.0,0.0681]
[1735682923152,0.053402,93802.0,93801.0,0.0661]
[1735682927162,0.07507344,93802.0,93801.0,0.0661]
[1735682927950,0.053402,93802.0,93801.0,0.0661]
[1735682928454,0.053402,93802.0,93801.0,0.119502]
[1735682931454,0.53680572,93820.0,93801.0,0.0661]
[1735682931756,0.11563573,93820.0,93819.0,0.053392]
[1735682931948,0.07913425,93820.0,93819.0,0.053392]
[1735682932558,0.00159917,93821.0,93820.0,0.053392]
[1735682935454,0.00559917,93821.0,93820.0,0.053392]
[1735682936562,0.01159917,93821.0,93820.0,0.053392]
[1735682940967,0.01159917,93821.0,93820.0,0.414192]
[1735682942056,0.00759917,93821.0,93820.0,0.414192]
[1735682942562,0.00359917,93821.0,93820.0,0.414192]
[1735682942755,0.00859917,93821.0,93820.0,0.414192]
[1735682943166,0.06199017,93821.0,93820.0,0.053392]
[1735682944370,0.09021286,93821.0,93820.0,0.053392]
[1735682944670,0.09021286,93821.0,93820.0,0.054392]
[1735682947167,0.06299017,93821.0,93820.0,0.054392]
[1735682950271,0.05999017,93821.0,93820.0,0.054392]
[1735682950471,0.06199017,93821.0,93820.0,0.054392]
[1735682951273,0.05799017,93821.0,93820.0,0.053392]
[1735682951571,0.05999017,93821.0,93820.0,0.053392]
[1735682951971,0.06299017,93821.0,93820.0,0.054392]
[1735682955873,0.06299017,93821.0,93820.0,0.001]
[1735682956972,0.06299017,93821.0,93820.0,0.054392]
[1735682967580,0.06299017,93821.0,93812.0,0.3608]
[1735682968081,0.06299017,93821.0,93820.0,0.053392]
[1735682968481,0.06299017,93821.0,93820.0,0.03118136]
[1735682969872,0.06199017,93821.0,93820.0,0.03118136]
[1735682970070,0.05799017,93821.0,93820.0,0.03118136]
[1735682970678,0.06299017,93821.0,93820.0,0.03218136]
[1735682972481,0.06299017,93821.0,93820.0,0.001]
[1735682980594,0.053392,93820.0,93819.0,0.02334521]
[1735682981899,0.058392,93820.0,93819.0,0.02434521]
[1735682982497,0.058392,93820.0,93819.0,0.001]
[1735682982897,0.058392,93820.0,93819.0,0.054392]
[1735682983293,0.061392,93820.0,93819.0,0.054392]
[1735682985186,0.061392,93820.0,93819.0,0.001]
[1735682985798,0.061392,93820.0,93806.0,0.0323]
[1735682986004,0.053399,93807.0,93806.0,0.0323]
[1735682986299,0.053401,93804.0,93800.0,0.153403]
[1735682988093,0.053401,93804.0,93803.0,0.0352]
[1735682989804,0.07668363,93804.0,93803.0,0.0352]
[1735682990496,0.0766271,93804.0,93803.0,0.0352]
[1735682996011,0.0766271,93804.0,93803.0,0.003]
[1735683011036,0.0766271,93804.0,93803.0,0.056401]
[1735683014637,0.0766271,93804.0,93803.0,0.02386295]
[1735683017632,0.31982949,93808.0,93803.0,0.02386295]
[1735683018041,0.053401,93804.0,93803.0,0.02386295]
[1735683020937,0.053401,93804.0,93803.0,0.02486295]
[1735683024535,0.053401,93804.0,93803.0,0.001]
[1735683028433,0.053399,93807.0,93800.0,0.09392771]
[1735683028749,0.053402,93801.0,93800.0,0.09352145]
[1735683050154,0.3608,93809.0,93800.0,0.04011845]
[1735683050457,0.053394,93816.0,93815.0,0.053394]
[1735683050649,0.38201206,93820.0,93808.0,0.3608]
[1735683050850,0.053398,93812.0,93811.0,0.053394]
[1735683051051,0.053394,93816.0,93815.0,0.053394]
[1735683052552,0.059394,93816.0,93815.0,0.053394]
[1735683052751,0.05146607,93825.0,93815.0,0.053394]
[1735683052952,0.053391,93821.0,93820.0,0.3608]
[1735683054259,0.057391,93821.0,93820.0,0.3608]
[1735683054454,0.064391,93821.0,93820.0,0.3618]
[1735683060263,0.12737853,93837.0,93820.0,0.3618]
[1735683060460,0.057391,93821.0,93820.0,0.3618]
[1735683061063,0.059391,93821.0,93820.0,0.3618]
[1735683061363,0.063391,93821.0,93820.0,0.3618]
[1735683061564,0.057391,93821.0,93820.0,0.3608]
[1735683061866,0.064391,93821.0,93820.0,0.3618]
[1735683066659,0.053397,93811.0,93810.0,0.00072]
[1735683066863,0.053402,93802.0,93801.0,0.36239916]
[1735683068776,0.053402,93802.0,93801.0,0.36539916]
[1735683069572,0.053402,93802.0,93801.0,0.36639916]
[1735683070163,0.053402,93802.0,93801.0,0.36539916]
[1735683070363,0.07759958,93802.0,93801.0,0.36539916]
[1735683084082,0.07759958,93802.0,93801.0,0.00459916]
[1735683088980,0.07759958,93802.0,93801.0,0.00559916]
[1735683089573,0.07759958,93802.0,93801.0,0.00259916]
[1735683089786,0.07759958,93802.0,93801.0,0.00559916]
[1735683090286,0.07759958,93802.0,93801.0,0.00459916]
[1735683090482,0.07759958,93802.0,93801.0,0.00359916]
[1735683097892,0.053402,93801.0,93800.0,0.39834349]
[1735683098188,0.053402,93801.0,93800.0,0.32428076]
[1735683099284,0.053402,93801.0,93800.0,0.32528076]
[1735683099490,0.053402,93801.0,93800.0,0.32828076]
[1735683100392,0.053402,93801.0,93800.0,0.27487776]
[1735683102399,0.053402,93801.0,93800.0,0.004]
[1735683102997,0.053398,93809.0,93800.0,0.004]
[1735683103592,0.053402,93801.0,93800.0,0.004]
[1735683104493,0.053403,93800.0,93799.0,0.053403]
[1735683106210,0.053403,93800.0,93799.0,0.054403]
[1735683106614,0.053403,93800.0,93799.0,0.057403]
[1735683116019,0.053403,93800.0,93799.0,0.418203]
[1735683116919,0.053403,93800.0,93799.0,0.057403]
[1735683117118,0.053403,93800.0,93799.0,0.418203]
[1735683122633,0.053403,93800.0,93799.0,0.057403]
[1735683122922,0.053403,93800.0,93799.0,0.418203]
[1735683125123,0.053403,93800.0,93799.0,0.415203]
[1735683125324,0.053403,93800.0,93799.0,0.416203]
[1735683125928,0.053403,93800.0,93799.0,0.415203]
[1735683126316,0.03011457,93805.0,93799.0,0.415203]
[1735683126512,0.053403,93804.0,93803.0,0.053401]
[1735683128227,0.054403,93804.0,93803.0,0.053401]
[1735683129127,0.055403,93804.0,93803.0,0.053401]
[1735683136128,0.053402,93802.0,93801.0,0.3608]
[1735683139122,0.054402,93802.0,93801.0,0.3608]
[1735683142535,0.053402,93802.0,93801.0,0.3608]
[1735683142940,0.053406,93795.0,93790.0,0.36144]
[1735683143135,0.053408,93791.0,93790.0,0.3608]
[1735683144236,0.053408,93791.0,93790.0,0.3628]
[1735683145437,0.053408,93791.0,93790.0,0.3678]
[1735683145744,0.053408,93791.0,93790.0,0.007]
[1735683146840,0.0906315,93791.0,93790.0,0.007]
[1735683152846,0.4514315,93791.0,93790.0,0.007]
[1735683155238,0.4514315,93791.0,93790.0,0.006]
[1735683155447,0.4514315,93791.0,93790.0,0.005]
[1735683156640,0.0906315,93791.0,93790.0,0.005]
[1735683161944,0.053408,93791.0,93790.0,0.005]
[1735683163052,0.053408,93791.0,93790.0,0.058409]
[1735683166152,0.053408,93791.0,93790.0,0.419209]
[1735683172561,0.053408,93791.0,93790.0,0.058409]
[1735683172763,0.053408,93791.0,93790.0,0.419209]
[1735683173557,0.053408,93791.0,93790.0,0.005]
[1735683173762,0.053408,93791.0,93790.0,0.3658]
[1735683179761,0.053408,93791.0,93790.0,0.005]
[1735683179966,0.053408,93791.0,93790.0,0.3658]
[1735683183970,0.053408,93791.0,93790.0,0.419209]
[1735683184360,0.11071301,93800.0,93794.0,0.053406]
[1735683184361,0.053406,93795.0,93794.0,0.053406]
[1735683186072,0.053406,93795.0,93794.0,0.054406]
[1735683192963,0.053406,93795.0,93794.0,0.415206]
[1735683199573,0.053406,93795.0,93794.0,0.054406]
[1735683199774,0.053406,93795.0,93794.0,0.415206]
[1735683201876,0.053406,93795.0,93794.0,0.054406]
[1735683202476,0.053406,93795.0,93794.0,0.415206]
[1735683203972,0.053406,93795.0,93794.0,0.054406]
[1735683204373,0.053406,93795.0,93794.0,0.415206]
[1735683215280,0.05731001,93804.0,93794.0,0.3618]
[1735683215281,0.00873248,93804.0,93794.0,0.3618]
[1735683215486,0.053405,93801.0,93800.0,0.053403]
[1735683217276,0.054405,93801.0,93800.0,0.084303]
[1735683217882,0.056405,93801.0,93800.0,0.084303]
[1735683225695,0.056405,93801.0,93800.0,0.0309]
[1735683225889,0.056405,93801.0,93800.0,0.084303]
[1735683236002,0.053403,93800.0,93799.0,0.3608]
[1735683237394,0.054403,93800.0,93799.0,0.3608]
[1735683238905,0.055403,93800.0,93799.0,0.3608]
[1735683240505,0.055403,93800.0,93799.0,0.414204]
[1735683243696,0.055403,93800.0,93799.0,0.053404]
[1735683244004,0.055403,93800.0,93799.0,0.414204]
[1735683244502,0.002,93800.0,93799.0,0.414204]
[1735683252914,0.001,93800.0,93799.0,0.414204]
[1735683253115,0.01,93800.0,93799.0,0.415204]
[1735683253316,0.22965189,93800.0,93799.0,0.415204]
[1735683253517,0.22965189,93800.0,93799.0,0.414204]
[1735683253717,0.22965189,93800.0,93799.0,0.415204]
[1735683254108,0.22965189,93800.0,93799.0,0.414204]
[1735683254310,0.28305489,93800.0,93799.0,0.415204]
[1735683254510,0.60350506,93800.0,93799.0,0.415204]
[1735683254910,0.60250506,93800.0,93799.0,0.415204]
[1735683255215,0.60750506,93800.0,93799.0,0.415204]
[1735683257111,0.59850506,93800.0,93799.0,0.415204]
[1735683257310,0.60750506,93800.0,93799.0,0.415204]
[1735683259112,0.60650506,93800.0,93799.0,0.415204]
[1735683259709,0.59750506,93800.0,93799.0,0.414204]
[1735683260022,0.60550506,93800.0,93799.0,0.415204]
[1735683267432,0.60550506,93800.0,93799.0,0.054404]
[1735683267632,0.60550506,93800.0,93799.0,0.415204]
[1735683267838,0.28505489,93800.0,93799.0,0.415204]
[1735683269137,0.061403,93800.0,93799.0,0.415204]
[1735683269337,0.067403,93800.0,93799.0,0.415204]
[1735683269531,0.067403,93800.0,93799.0,0.054404]
[1735683269741,0.067403,93800.0,93799.0,0.415204]
[1735683270546,0.23737645,93800.0,93799.0,0.415204]
[1735683270846,0.33901788,93800.0,93798.0,0.0631]
[1735683271249,0.33901788,93800.0,93799.0,0.053404]
[1735683271543,0.067403,93800.0,93799.0,0.053404]
[1735683271936,0.066403,93800.0,93799.0,0.053404]
[1735683272333,0.057403,93800.0,93799.0,0.053404]
[1735683272646,0.064403,93800.0,93799.0,0.053404]
[1735683273043,0.065403,93800.0,93799.0,0.053404]
[1735683273551,0.67306769,93800.0,93799.0,0.053404]
[1735683278541,0.61966469,93800.0,93799.0,0.353404]
[1735683278744,0.01859878,93804.0,93799.0,0.353404]
[1735683278952,0.05776571,93807.0,93806.0,0.0534]
[1735683279253,0.00159894,93823.0,93807.0,0.053399]
[1735683279746,0.00159894,93823.0,93807.0,0.353399]
[1735683280545,0.00159894,93823.0,93806.0,0.36236]
[1735683280546,0.22411195,93812.0,93811.0,0.053397]
[1735683282451,0.23011195,93812.0,93811.0,0.053397]
[1735683282649,0.23911195,93812.0,93811.0,0.054397]
[1735683283054,0.23011195,93812.0,93811.0,0.053397]
[1735683283353,0.23911195,93812.0,93811.0,0.054397]
[1735683284952,0.015,93812.0,93811.0,0.054397]
[1735683289356,0.22411195,93821.0,93811.0,0.054397]
[1735683289558,0.22411195,93821.0,93820.0,0.414192]
[1735683289762,0.00159894,93823.0,93820.0,0.414192]
[1735683289961,0.00159894,93823.0,93822.0,0.05339]
[1735683290959,0.10477146,93823.0,93822.0,0.05339]
[1735683291156,5.2e-07,93823.0,93822.0,0.05339]
[1735683291363,4.6e-07,93827.0,93826.0,0.053388]
[1735683292457,0.0239,93844.0,93843.0,0.053379]
[1735683292653,0.0239,93844.0,93843.0,0.414179]
[1735683295160,0.0259,93844.0,93843.0,0.414179]
[1735683295766,0.0289,93844.0,93843.0,0.414179]
[1735683296062,0.0299,93844.0,93843.0,0.414179]
[1735683296661,0.003,93844.0,93843.0,0.414179]
[1735683296964,0.006,93844.0,93843.0,0.414179]
[1735683298964,0.006,93844.0,93843.0,0.46735206]
[1735683300867,0.28974241,93863.0,93849.0,0.053375]
[1735683301169,0.28814394,93863.0,93861.0,0.053368]
[1735683301372,0.28814394,93863.0,93861.0,0.414168]
[1735683302473,0.28814394,93883.0,93874.0,0.053361]
[1735683303465,0.09669821,93884.0,93874.0,0.053361]
[1735683303969,0.0635,93884.0,93874.0,0.054361]
[1735683304266,0.09971646,93887.0,93886.0,0.053354]
[1735683304660,0.09971646,93887.0,93883.0,0.414756]
[1735683304661,0.00064,93889.0,93888.0,0.053353]
[1735683304973,0.0946,93899.0,93898.0,0.053347]
[1735683307074,0.0946,93899.0,93898.0,0.054347]
[1735683307871,0.05147083,93905.0,93899.0,0.053347]
[1735683308075,0.0643,93904.0,93899.0,0.053347]
[1735683308872,0.053346,93901.0,93899.0,0.053347]
[1735683309075,0.053346,93901.0,93899.0,0.054347]
[1735683309260,0.2309,93900.0,93899.0,0.055347]
[1735683311875,0.2309,93900.0,93899.0,0.054347]
[1735683312073,0.2309,93900.0,93899.0,0.055347]
[1735683313875,0.284246,93900.0,93899.0,0.002]
[1735683314881,0.2309,93900.0,93899.0,0.055347]
[1735683321381,0.2309,93900.0,93899.0,0.054347]
[1735683324983,0.05336,93879.0,93878.0,0.053357]
[1735683325381,0.053362,93874.0,93873.0,0.053361]
[1735683327378,0.054362,93874.0,93873.0,0.053361]
[1735683328580,0.055362,93874.0,93873.0,0.054361]
[1735683331281,0.002,93874.0,93873.0,0.054361]
[1735683333884,0.002,93874.0,93873.0,0.053361]
[1735683333885,0.001,93874.0,93873.0,0.053361]
[1735683334385,0.053355,93885.0,93873.0,0.053361]
[1735683334574,0.001,93874.0,93873.0,0.053361]
[1735683336579,0.054355,93885.0,93884.0,0.053355]
[1735683337290,0.053355,93885.0,93884.0,0.053355]
[1735683337982,0.054355,93885.0,93884.0,0.054355]
[1735683338389,0.01088266,93895.0,93884.0,0.001]
[1735683338581,0.053355,93886.0,93885.0,0.053355]
[1735683339184,0.14411521,93886.0,93885.0,0.053355]
[1735683340292,0.09076021,93886.0,93885.0,0.053355]
[1735683340587,0.09076021,93886.0,93885.0,0.054355]
[1735683342883,0.053354,93887.0,93886.0,0.053354]
[1735683344289,0.053354,93887.0,93886.0,0.054354]
[1735683344683,0.14425851,93887.0,93886.0,0.054354]
[1735683345995,0.053354,93887.0,93886.0,0.054354]
[1735683347489,0.09091079,93893.0,93886.0,0.001]
[1735683347687,0.053352,93892.0,93891.0,0.053351]
[1735683349095,0.1442648,93892.0,93891.0,0.053351]
[1735683349585,0.1442648,93892.0,93891.0,0.054351]
[1735683353798,0.1442648,93892.0,93891.0,0.001]
[1735683354096,0.1442648,93892.0,93891.0,0.054351]
[1735683355788,0.46362599,93892.0,93891.0,0.054351]
[1735683377512,0.1442648,93892.0,93891.0,0.054351]
[1735683387732,0.0909128,93892.0,93891.0,0.054351]
[1735683389723,0.0909128,93892.0,93891.0,0.09979923]
[1735683392425,0.0909128,93892.0,93891.0,0.46059923]
[1735683393935,0.37883846,93892.0,93891.0,0.46059923]
[1735683394925,0.31936119,93895.0,93891.0,0.46059923]
[1735683395127,0.31936119,93895.0,93894.0,0.05335]
[1735683397931,0.31936119,93895.0,93894.0,0.05435]
[1735683399130,0.41027399,93895.0,93894.0,0.05435]
[1735683401233,0.0909128,93895.0,93894.0,0.05435]
[1735683402745,0.0909128,93895.0,93894.0,0.77595]
[1735683402945,0.35250161,93899.0,93898.0,0.053347]
[1735683404438,0.35250161,93899.0,93898.0,0.054347]
[1735683405239,0.2,93900.0,93898.0,0.001]
[1735683405448,0.2,93900.0,93899.0,0.053347]
[1735683407945,0.2,93900.0,93899.0,0.054347]
[1735683409949,0.28964415,93900.0,93899.0,0.054347]
[1735683411441,0.28964415,93900.0,93899.0,0.053347]
[1735683419150,0.2,93900.0,93899.0,0.053347]
[1735683421055,0.28981353,93900.0,93899.0,0.053347]
[1735683421650,0.2,93900.0,93899.0,0.053347]
[1735683424347,0.28986867,93900.0,93899.0,0.053347]
[1735683425447,0.28986867,93900.0,93899.0,0.054347]
[1735683426255,0.28986867,93900.0,93899.0,0.053347]
[1735683426651,0.2,93900.0,93899.0,0.053347]
[1735683436754,0.28990285,93900.0,93899.0,0.053347]
[1735683440556,0.58990285,93900.0,93894.0,0.36136]
[1735683440759,0.05335,93894.0,93882.0,0.053356]
[1735683440954,0.3608,93887.0,93882.0,0.053356]
[1735683441155,0.053357,93881.0,93879.0,0.053358]
[1735683441360,0.3608,93887.0,93879.0,0.053358]
[1735683441361,0.053358,93880.0,93879.0,0.053358]
[1735683442668,0.053358,93880.0,93879.0,0.055358]
[1735683442960,0.14326085,93880.0,93879.0,0.055358]
[1735683443963,0.14326085,93880.0,93879.0,0.058358]
[1735683445165,0.053358,93880.0,93879.0,0.058358]
[1735683448565,0.14294841,93880.0,93879.0,0.058358]
[1735683449854,0.053358,93880.0,93879.0,0.058358]
[1735683457478,0.053361,93874.0,93873.0,0.00056]
[1735683457770,0.053374,93851.0,93850.0,0.3608]
[1735683460470,0.053374,93851.0,93850.0,0.009]
[1735683460869,0.053374,93851.0,93850.0,0.013]
[1735683463167,0.053374,93851.0,93850.0,0.066375]
[1735683464671,0.053374,93851.0,93850.0,0.013]
[1735683465975,0.14284007,93851.0,93850.0,0.013]
[1735683466976,0.14284007,93851.0,93850.0,0.01]
[1735683467472,0.14284007,93851.0,93843.0,0.053378]
[1735683467676,0.053378,93844.0,93843.0,0.053378]
[1735683468076,0.05338,93841.0,93840.0,0.3608]
[1735683468768,0.006,93851.0,93832.0,0.0315]
[1735683468769,0.3608,93848.0,93832.0,0.0315]
[1735683468977,0.053384,93836.0,93835.0,0.053383]
[1735683469775,0.053384,93834.0,93832.0,0.0315]
[1735683469975,0.053384,93834.0,93833.0,0.085184]
[1735683471371,0.056384,93834.0,93833.0,0.085184]
[1735683480989,0.055384,93834.0,93833.0,0.085184]
[1735683485091,0.055384,93834.0,93833.0,0.0318]
[1735683487290,0.055384,93834.0,93833.0,0.085184]
[1735683487495,0.056384,93834.0,93833.0,0.085184]
[1735683488688,0.03870278,93840.0,93833.0,0.0318]
[1735683488896,0.031,93842.0,93833.0,0.0318]
[1735683489096,0.053384,93834.0,93833.0,0.0318]
[1735683491492,0.053394,93815.0,93814.0,0.36239882]
[1735683492688,0.053394,93815.0,93814.0,0.36539882]
[1735683493889,0.053394,93815.0,93814.0,0.37239882]
[1735683494394,0.056394,93815.0,93814.0,0.36539882]
[1735683495187,0.057394,93815.0,93814.0,0.36239882]
[1735683497295,0.418194,93815.0,93814.0,0.00159882]
[1735683499392,0.50848875,93815.0,93814.0,0.00159882]
[1735683499590,0.52749582,93815.0,93814.0,0.00159882]
[1735683501402,0.053397,93811.0,93810.0,0.0309]
[1735683502795,0.14369175,93811.0,93810.0,0.0309]
[1735683503698,0.054397,93811.0,93810.0,0.0309]
[1735683511512,0.144377,93811.0,93810.0,0.0309]
[1735683512813,0.054397,93811.0,93810.0,0.0309]
[1735683517814,0.14452169,93811.0,93810.0,0.0309]
[1735683520416,0.053401,93805.0,93804.0,0.053401]
[1735683521011,0.14352569,93805.0,93804.0,0.053401]
[1735683521511,0.14352569,93805.0,93804.0,0.054401]
[1735683521712,0.14352569,93805.0,93804.0,0.056401]
[1735683522309,0.14352569,93805.0,93804.0,0.003]
[1735683522512,0.053405,93797.0,93796.0,0.3608]
[1735683523318,0.43195261,93797.0,93796.0,0.3608]
[1735683523818,0.43195261,93797.0,93796.0,0.3668]
[1735683524321,0.43195261,93797.0,93796.0,0.3698]
[1735683524527,0.45195445,93797.0,93796.0,0.3698]
[1735683530825,0.43195261,93797.0,93796.0,0.3698]
[1735683531223,0.05341,93788.0,93787.0,0.0324]
[1735683532434,0.053414,93781.0,93780.0,0.3608]
[1735683533839,0.14394387,93781.0,93780.0,0.3608]
[1735683534039,0.14394387,93781.0,93780.0,0.3678]
[1735683538148,0.053414,93781.0,93780.0,0.3678]
[1735683540447,0.053414,93781.0,93780.0,0.3668]
[1735683540752,0.055414,93781.0,93780.0,0.3618]
[1735683542243,0.056414,93781.0,93780.0,0.3608]
[1735683543448,0.053418,93773.0,93772.0,0.0303]
[1735683545550,0.14365156,93773.0,93772.0,0.0323]
[1735683546843,0.14465156,93773.0,93772.0,0.0313]
[1735683547951,0.14465156,93773.0,93772.0,0.0303]
[1735683548139,0.14765156,93773.0,93772.0,0.0303]
[1735683549840,0.12298874,93781.0,93772.0,0.3303]
[1735683549841,0.00064631,93781.0,93772.0,0.3303]
[1735683550052,0.11825139,93782.0,93781.0,0.053414]
[1735683550445,0.11825139,93782.0,93781.0,0.353414]
[1735683550845,0.053406,93796.0,93791.0,0.053408]